fUSD/lending_fUSD_20250606
["ID","MTS","AMOUNT","RATE_DAILY","PERIOD"]
[364788811,1749241885719,-480.0,0.00028712,5]
[364788812,1749241885729,-574.86,0.00028712,5]
[364788813,1749241885739,-151.0,0.00028712,7]
[364788814,1749241885749,-480.0,0.00028712,5]
[364788815,1749241885759,-518.75,0.00028712,5]
[364788816,1749241885768,-951.19,0.00028712,5]
[364788817,1749241885778,-779.94,0.00028712,5]
[364788818,1749241885791,-689.83,0.00028712,5]
[364788819,1749241885800,-1012.85,0.00028712,5]
[364788820,1749241885810,-151.0,0.00028712,7]
[364788821,1749241885820,-482.38,0.00028712,5]
[364788822,1749241885830,-713.99,0.00028712,5]
[364788823,1749241885839,-480.0,0.00028712,5]
[364788824,1749241885848,-549.54,0.00028712,5]
[364788825,1749241885859,-480.0,0.00028712,5]
[364788826,1749241885870,-369.55058654,0.00028712,5]
[364788827,1749241885879,-891.22,0.00028712,5]
[364788828,1749241885888,-1010.55,0.00028712,5]
[364788829,1749241885899,-480.0,0.00028712,5]
[364788830,1749241885910,-580.5,0.00028712,5]
[364788831,1749241885920,-480.0,0.00028712,5]
[364788832,1749241885930,-160.022321,0.00028712,7]
[364788833,1749241885941,-480.0,0.00028712,5]
[364788834,1749241885950,-160.02233,0.00028712,7]
[364788835,1749241885960,-480.0,0.00028712,5]
[364788836,1749241885970,-480.0,0.00028712,5]
[364788837,1749241885980,-701.32114,0.00028712,7]
[364788838,1749241885990,-240.64507,0.00028712,7]
[364788839,1749241886000,-787.11,0.00028712,5]
[364788840,1749241886009,-240.64508,0.00028712,7]
[364788841,1749241886019,-701.321132,0.00028712,7]
[364788842,1749241886028,-247.548234,0.00028712,7]
[364788843,1749241886037,-480.0,0.00028712,5]
[364788844,1749241886047,-801.53,0.00028712,5]
[364788845,1749241886056,-247.54824,0.00028712,7]
[364788846,1749241886065,-547.92,0.00028712,5]
[364788847,1749241886075,-788.62,0.00028712,5]
[364788848,1749241886085,-823.95,0.00028712,5]
[364788849,1749241886095,-155.344461,0.00028712,7]
[364788850,1749241886106,-540.55,0.00028712,5]
[364788851,1749241886116,-480.0,0.00028712,5]
[364788852,1749241886127,-1667.28,0.00028712,5]
[364788853,1749241886138,-155.344453,0.00028712,7]
[364788854,1749241886149,-708.27,0.00028712,5]
[364788855,1749241886158,-815.35,0.00028712,5]
[364788856,1749241886167,-1322.04,0.00028712,5]
[364788857,1749241886176,-788.51,0.00028712,5]
[364788858,1749241886186,-480.0,0.00028712,5]
[364788859,1749241886196,-1588.19,0.00028712,5]
[364788860,1749241886205,-894.23,0.00028712,5]
[364788861,1749241886215,-627.73,0.00028712,5]
[364788862,1749241886224,-493.66,0.00028712,5]
[364788863,1749241886234,-907.31,0.00028712,5]
[364788864,1749241886243,-1000.0,0.00028712,5]
[364788865,1749241886253,-543.94,0.00028712,5]
[364788866,1749241886263,-151.0,0.00028712,7]
[364788867,1749241886272,-907.9,0.00028712,5]
[364788868,1749241886282,-612.39,0.00028712,5]
[364788869,1749241886292,-908.3,0.00028712,5]
[364788870,1749241886302,-156.813701,0.00028712,5]
[364788871,1749241886312,-480.0,0.00028712,5]
[364788872,1749241886322,-480.0,0.00028712,5]
[364788873,1749241886331,-3267.11,0.00028712,5]
[364788874,1749241886340,-778.17,0.00028712,5]
[364788875,1749241886350,-948.36,0.00028712,5]
[364788876,1749241886359,-1438.85,0.00028712,5]
[364788877,1749241886368,-542.99,0.00028712,5]
[364788878,1749241886378,-555.32,0.00028712,5]
[364788879,1749241886387,-150.270793,0.00028712,5]
[364788880,1749241886397,-1535.87,0.00028712,5]
[364788881,1749241886407,-480.0,0.00028712,5]
[364788882,1749241886416,-1296.25,0.00028712,5]
[364788883,1749241886426,-516.58,0.00028712,5]
[364788884,1749241886435,-480.0,0.00028712,5]
[364788885,1749241886445,-1575.78,0.00028712,5]
[364788886,1749241886454,-538.08,0.00028712,5]
[364788887,1749241886463,-158.659202,0.00028712,7]
[364788888,1749241886474,-970.72,0.00028712,5]
[364788889,1749241886484,-2734.62,0.00028712,5]
[364788890,1749241886495,-1837.71,0.00028712,5]
[364788891,1749241886505,-158.659204,0.00028712,7]
[364788892,1749241886515,-480.0,0.00028712,5]
[364788893,1749241886524,-2758.24,0.00028712,5]
[364788894,1749241886534,-4609.26,0.00028712,5]
[364788895,1749241886543,-480.0,0.00028712,5]
[364788896,1749241886552,-819.99,0.00028712,5]
[364788897,1749241886564,-1046.07,0.00028712,5]
[364788898,1749241886575,-480.0,0.00028712,5]
[364788899,1749241886585,-3979.76,0.00028712,5]
[364788900,1749241886595,-902.21,0.00028712,5]
[364788901,1749241886604,-480.0,0.00028712,5]
[364788902,1749241886614,-599.88,0.00028712,5]
[364788903,1749241886624,-480.0,0.00028712,5]
[364788904,1749241886635,-7399.63,0.00028712,5]
[364788905,1749241886647,-765.24,0.00028712,5]
[364788906,1749241886656,-480.0,0.00028712,5]
[364788907,1749241886666,-57460.09,0.00028712,5]
[364788908,1749241886675,-703.27,0.00028712,5]
[364788909,1749241886685,-480.0,0.00028712,5]
[364788910,1749241886695,-4676.37,0.00028712,5]
[364788911,1749241886704,-2938.32,0.00028712,5]
[364788912,1749241886714,-1379.45,0.00028712,5]
[364788913,1749241886724,-7478.95,0.00028712,5]
[364788914,1749241886733,-755.4,0.00028712,5]
[364788915,1749241886743,-607.62,0.00028712,5]
[364788916,1749241886752,-1091.95,0.00028712,5]
[364788917,1749241886762,-3373.75,0.00028712,5]
[364788918,1749241886771,-1260.18,0.00028712,5]
[364788919,1749241886782,-949.92,0.00028712,5]
[364788920,1749241886793,-9118.0,0.00028712,5]
[364788921,1749241886802,-520.51,0.00028712,5]
[364788922,1749241886811,-480.0,0.00028712,5]
[364788923,1749241886820,-597.4,0.00028712,5]
[364788924,1749241886830,-1500.48,0.00028712,5]
[364788925,1749241886839,-1073.19,0.00028712,5]
[364788926,1749241886850,-2617.35,0.00028712,5]
[364788927,1749241886860,-1091.83,0.00028712,5]
[364788928,1749241886870,-1000.0,0.00028712,2]
[364788929,1749241886879,-480.0,0.00028712,5]
[364788930,1749241886888,-480.0,0.00028712,5]
[364788931,1749241886898,-2954.48,0.00028712,5]
[364788932,1749241886910,-480.0,0.00028712,5]
[364788933,1749241886919,-676.46,0.00028712,5]
[364788934,1749241886929,-1100.1,0.00028712,5]
[364788935,1749241886938,-774.3,0.00028712,5]
[364788936,1749241886948,-909.08,0.00028712,5]
[364788937,1749241886957,-771.25,0.00028712,5]
[364788938,1749241886967,-1341.13,0.00028712,5]
[364788939,1749241886977,-1674.49,0.00028712,5]
[364788940,1749241886987,-480.0,0.00028712,5]
[364788941,1749241886996,-2363.43,0.00028712,5]
[364788942,1749241887006,-1778.5,0.00028712,5]
[364788943,1749241887016,-2094.52,0.00028712,5]
[364788944,1749241887025,-480.0,0.00028712,5]
[364788945,1749241887034,-2998.55,0.00028712,5]
[364788946,1749241887044,-837.35,0.00028712,5]
[364788947,1749241887054,-1324.98,0.00028712,5]
[364788948,1749241887064,-822.69,0.00028712,5]
[364788949,1749241887078,-4354.28,0.00028712,5]
[364788950,1749241887088,-10833.54,0.00028712,5]
[364788951,1749241887098,-1172.56,0.00028712,5]
[364788952,1749241887108,-2910.79,0.00028712,5]
[364788953,1749241887118,-1425.98,0.00028712,5]
[364788954,1749241887128,-1161.29,0.00028712,5]
[364788955,1749241887137,-701.08,0.00028712,5]
[364788956,1749241887147,-725.11,0.00028712,5]
[364788957,1749241887156,-480.0,0.00028712,5]
[364788958,1749241887166,-891.78,0.00028712,5]
[364788959,1749241887175,-622.3,0.00028712,5]
[364788960,1749241887185,-480.0,0.00028712,5]
[364788961,1749241887195,-2822.75,0.00028712,5]
[364788962,1749241887205,-1363.03,0.00028712,5]
[364788963,1749241887215,-3135.14,0.00028712,5]
[364788964,1749241887224,-1180.93,0.00028712,5]
[364788965,1749241887234,-931.09,0.00028712,5]
[364788966,1749241887244,-480.0,0.00028712,5]
[364788967,1749241887254,-1414.51,0.00028712,5]
[364788968,1749241887264,-1155.88,0.00028712,5]
[364788969,1749241887273,-4001.96,0.00028712,5]
[364788970,1749241887283,-552.73,0.00028712,5]
[364788971,1749241887292,-632.88,0.00028712,5]
[364788972,1749241887301,-1526.89,0.00028712,5]
[364788973,1749241887310,-1010.46,0.00028712,5]
[364788974,1749241887321,-480.0,0.00028712,5]
[364788975,1749241887334,-1132.61,0.00028712,5]
[364788976,1749241887344,-1110.02,0.00028712,5]
[364788977,1749241887353,-533.37,0.00028712,5]
[364788978,1749241887363,-4560.52,0.00028712,5]
[364788979,1749241887373,-593.39,0.00028712,5]
[364788980,1749241887384,-480.0,0.00028712,5]
[364788981,1749241887394,-1741.06,0.00028712,5]
[364788982,1749241887404,-480.0,0.00028712,5]
[364788983,1749241887415,-480.0,0.00028712,5]
[364788984,1749241887424,-480.0,0.00028712,5]
[364788985,1749241887434,-1207.6,0.00028712,5]
[364788986,1749241887444,-480.0,0.00028712,5]
[364788987,1749241887454,-526.84,0.00028712,5]
[364788988,1749241887464,-625.4,0.00028712,5]
[364788989,1749241887474,-776.39,0.00028712,5]
[364788990,1749241887484,-1627.41,0.00028712,5]
[364788991,1749241887494,-959.5,0.00028712,5]
[364788992,1749241887503,-3166.58,0.00028712,5]
[364788993,1749241887513,-480.0,0.00028712,5]
[364788994,1749241887522,-480.0,0.00028712,5]
[364788995,1749241887532,-1176.26,0.00028712,5]
[364788996,1749241887541,-1451.66,0.00028712,5]
[364788997,1749241887551,-480.0,0.00028712,5]
[364788998,1749241887560,-480.0,0.00028712,5]
[364788999,1749241887570,-480.0,0.00028712,5]
[364789000,1749241887585,-480.0,0.00028712,5]
[364789001,1749241887594,-2618.96,0.00028712,5]
[364789002,1749241887603,-7319.26,0.00028712,5]
[364789003,1749241887612,-15228.1,0.00028712,5]
[364789004,1749241887621,-480.0,0.00028712,5]
[364789005,1749241887631,-3041.7,0.00028712,5]
[364789006,1749241887640,-649.3,0.00028712,5]
[364789007,1749241887649,-480.0,0.00028712,5]
[364789008,1749241887659,-585.28,0.00028712,5]
[364789009,1749241887668,-11478.06,0.00028712,5]
[364789010,1749241887677,-1727.03,0.00028712,5]
[364789011,1749241887687,-1130.77,0.00028712,5]
[364789012,1749241887696,-7297.24,0.00028712,5]
[364789013,1749241887705,-480.0,0.00028712,5]
[364789014,1749241887714,-1673.57,0.00028712,5]
[364789015,1749241887723,-480.0,0.00028712,5]
[364789016,1749241887733,-155.22438,0.00028712,5]
[364789017,1749241887742,-480.0,0.00028712,5]
[364789018,1749241887751,-1724.44,0.00028712,5]
[364789019,1749241887760,-605.57,0.00028712,5]
[364789020,1749241887770,-2022.54,0.00028712,5]
[364789021,1749241887781,-1496.76,0.00028712,5]
[364789022,1749241887793,-616.43,0.00028712,5]
[364789023,1749241887802,-480.0,0.00028712,5]
[364789024,1749241887811,-1644.54,0.00028712,5]
[364789025,1749241887824,-3349.68,0.00028712,5]
[364789026,1749241887834,-584.83,0.00028712,5]
[364789027,1749241887844,-624.52,0.00028712,5]
[364789028,1749241887853,-1651.89,0.00028712,5]
[364789029,1749241887865,-629.61201637,0.00028712,5]
[364789030,1749241887875,-869.35,0.00028712,5]
[364789031,1749241887884,-360.792683,0.00028712,5]
[364789032,1749241887894,-718.31,0.00028712,5]
[364789033,1749241887904,-567.05,0.00028712,5]
[364789034,1749241887915,-593.22,0.00028712,5]
[364789035,1749241887924,-724.33,0.00028712,5]
[364789036,1749241888003,-1529.35,0.00028712,5]
[364789037,1749241888013,-586.21,0.00028712,5]
[364789038,1749241888022,-618.5,0.00028712,5]
[364789039,1749241888032,-645.12,0.00028712,5]
[364789040,1749241888041,-1029.88,0.00028712,5]
[364789041,1749241888051,-856.04,0.00028712,5]
[364789042,1749241888061,-1316.83,0.00028712,5]
[364789043,1749241888071,-937.26,0.00028712,5]
[364789044,1749241888084,-1219.25,0.00028712,5]
[364789045,1749241888093,-2376.4,0.00028712,5]
[364789046,1749241888103,-480.0,0.00028712,2]
[364789047,1749241888112,-481.35,0.00028712,5]
[364789048,1749241888122,-1691.35,0.00028712,5]
[364789049,1749241888131,-874.97,0.00028712,5]
[364789050,1749241888141,-1037.35961266,0.00028712,30]
[364789051,1749241888150,-255.59327405,0.00028724,7]
[364789052,1749241888159,-326.78703344,0.00028724,7]
[364789053,1749241888169,-150.0,0.00028736,7]
[364789054,1749241888178,-150.0,0.00028737,7]
[364789055,1749241888187,-150.0,0.00028741,7]
[364789056,1749241888197,-150.0,0.00028742,7]
[364789057,1749241888206,-255.59327405,0.00028756,7]
[364789058,1749241888215,-326.78703344,0.00028756,7]
[364789059,1749241888225,-150.0,0.00028765,7]
[364789060,1749241888234,-151.0,0.00028767,7]
[364789061,1749241888243,-151.0,0.00028767,7]
[364789062,1749241888253,-151.0,0.00028767,7]
[364789063,1749241888262,-151.0,0.00028767,7]
[364789064,1749241888271,-151.0,0.00028767,7]
[364789065,1749241888281,-345.109926,0.00028767,7]
[364789066,1749241888291,-345.109926,0.00028767,7]
[364789067,1749241888300,-1000.0,0.00028767,15]
[364789068,1749241888310,-1000.0,0.00028767,15]
[364789069,1749241888319,-468.58740865,0.00028767,15]
[364789070,1749241888332,-636.39,0.00028767,2]
[364789071,1749241888342,-636.0,0.00028768,2]
[364789072,1749241888351,-801.0,0.00028768,2]
[364789073,1749241888360,-1274.0,0.00028768,2]
[364789074,1749241888370,-557.0,0.00028768,2]
[364789075,1749241888379,-589.0,0.00028768,2]
[364789076,1749241888389,-1999.0,0.00028768,2]
[364789077,1749241888398,-926.0,0.00028768,2]
[364789078,1749241888407,-1391.55,0.00028768,2]
[364789079,1749241888416,-151.0,0.00028768,7]
[364789080,1749241888425,-1158.0,0.00028768,2]
[364789081,1749241888435,-7017.0,0.00028768,2]
[364789082,1749241888444,-4081.0,0.00028768,2]
[364789083,1749241888453,-1164.0,0.00028768,2]
[364789084,1749241888463,-150.0,0.00028772,7]
[364789085,1749241888472,-150.0,0.0002878,7]
[364789086,1749241888481,-255.59327405,0.00028788,7]
[364789087,1749241888490,-326.78703344,0.00028788,7]
[364789088,1749241888499,-150.0,0.00028792,7]
[364789089,1749241888509,-500.0,0.00028794,7]
[364789090,1749241888518,-207.0,0.000288,2]
[364789091,1749241888527,-150.0,0.00028808,7]
[364789092,1749241888536,-152.0,0.00028814,4]
[364789093,1749241888546,-150.0,0.00028819,7]
[364789094,1749241888555,-255.59327405,0.0002882,7]
[364789095,1749241888566,-326.78703344,0.0002882,7]
[364789096,1749241888579,-1037.35961266,0.00028822,30]
[364789097,1749241888589,-150.0,0.00028826,7]
[364789098,1749241888598,-150.0,0.00028835,7]
[364789099,1749241888607,-150.0,0.00028844,7]
[364789100,1749241888615,-150.0,0.00028847,7]
[364789101,1749241888624,-255.59327405,0.00028852,7]
[364789102,1749241888634,-326.78703344,0.00028852,7]
[364789103,1749241888643,-150.0,0.00028854,7]
[364789104,1749241888652,-150.0,0.00028857,7]
[364789105,1749241888663,-1030.91750665,0.00028868,5]
[364789106,1749241888673,-480.0,0.00028876,5]
[364789107,1749241888684,-151.0,0.00028876,7]
[364789108,1749241888693,-151.0,0.00028876,7]
[364789109,1749241888703,-1463.594543,0.00028876,5]
[364789110,1749241888714,-1652.978713,0.00028876,5]
[364789111,1749241888725,-156.813701,0.00028876,5]
[364789112,1749241888735,-151.0,0.00028876,7]
[364789113,1749241888746,-170.306146,0.00028876,7]
[364789114,1749241888756,-151.0,0.00028876,7]
[364789115,1749241888765,-170.306146,0.00028876,7]
[364789116,1749241888774,-330.932588,0.00028876,7]
[364789117,1749241888785,-212.73304879,0.00028876,5]
[364789118,1749241888795,-330.932588,0.00028876,7]
[364789119,1749241888804,-480.0,0.00028876,5]
[364789120,1749241888813,-157.963801,0.00028876,7]
[364789121,1749241888825,-157.963801,0.00028876,7]
[364789122,1749241888834,-739.24117,0.00028876,7]
[364789123,1749241888843,-151.0,0.00028876,7]
[364789124,1749241888852,-739.24117,0.00028876,7]
[364789125,1749241888862,-151.0,0.00028876,7]
[364789126,1749241888871,-245.525784,0.00028876,7]
[364789127,1749241888880,-480.0,0.00028876,5]
[364789128,1749241888890,-280.793429,0.00028876,7]
[364789129,1749241888899,-280.793436,0.00028876,7]
[364789130,1749241888907,-151.0,0.00028876,7]
[364789131,1749241888917,-198.313659,0.00028876,7]
[364789132,1749241888926,-464.089284,0.00028876,7]
[364789133,1749241888935,-464.089284,0.00028876,7]
[364789134,1749241888944,-480.0,0.00028876,5]
[364789135,1749241888954,-480.0,0.00028876,5]
[364789136,1749241888963,-480.0,0.00028876,5]
[364789137,1749241888973,-480.0,0.00028876,5]
[364789138,1749241888982,-186.900191,0.00028876,7]
[364789139,1749241888991,-480.0,0.00028876,5]
[364789140,1749241888999,-186.900189,0.00028876,7]
[364789141,1749241889008,-650.7,0.00028876,2]
[364789142,1749241889017,-480.0,0.00028876,5]
[364789143,1749241889026,-480.0,0.00028876,5]
[364789144,1749241889035,-1150.67,0.00028876,5]
[364789145,1749241889044,-849.58,0.00028876,5]
[364789146,1749241889053,-151.0,0.00028876,7]
[364789147,1749241889063,-600.0,0.00028876,30]
[364789148,1749241889072,-1762.69,0.00028876,5]
[364789149,1749241889085,-480.0,0.00028876,5]
[364789150,1749241889094,-521.79,0.00028876,5]
[364789151,1749241889103,-480.0,0.00028876,5]
[364789152,1749241889112,-480.0,0.00028876,5]
[364789153,1749241889121,-480.0,0.00028876,5]
[364789154,1749241889131,-1155.6,0.00028876,5]
[364789155,1749241889140,-1160.86,0.00028876,5]
[364789156,1749241889149,-519.58,0.00028876,5]
[364789157,1749241889158,-552.94,0.00028876,5]
[364789158,1749241889167,-950.71,0.00028876,5]
[364789159,1749241889177,-480.0,0.00028876,5]
[364789160,1749241889186,-675.25,0.00028876,5]
[364789161,1749241889196,-885.57,0.00028876,5]
[364789162,1749241889205,-480.0,0.00028876,5]
[364789163,1749241889215,-666.72,0.00028876,5]
[364789164,1749241889224,-480.0,0.00028876,5]
[364789165,1749241889233,-1073.7,0.00028876,5]
[364789166,1749241889243,-151.0,0.00028876,7]
[364789167,1749241889252,-519.6,0.00028876,5]
[364789168,1749241889261,-511.45,0.00028876,5]
[364789169,1749241889270,-499.44,0.00028876,5]
[364789170,1749241889280,-803.55,0.00028876,5]
[364789171,1749241889290,-579.61,0.00028876,5]
[364789172,1749241889299,-607.44,0.00028876,5]
[364789173,1749241889309,-883.54,0.00028876,5]
[364789174,1749241889318,-838.95,0.00028876,5]
[364789175,1749241889330,-480.0,0.00028876,5]
[364789176,1749241889339,-480.0,0.00028876,5]
[364789177,1749241889348,-732.08,0.00028876,5]
[364789178,1749241889358,-646.34,0.00028876,5]
[364789179,1749241889367,-480.0,0.00028876,5]
[364789180,1749241889376,-574.86,0.00028876,5]
[364789181,1749241889386,-480.0,0.00028876,5]
[364789182,1749241889396,-518.75,0.00028876,5]
[364789183,1749241889406,-951.19,0.00028876,5]
[364789184,1749241889416,-779.94,0.00028876,5]
[364789185,1749241889425,-689.83,0.00028876,5]
[364789186,1749241889435,-1012.85,0.00028876,5]
[364789187,1749241889444,-482.38,0.00028876,5]
[364789188,1749241889453,-713.99,0.00028876,5]
[364789189,1749241889463,-480.0,0.00028876,5]
[364789190,1749241889472,-549.54,0.00028876,5]
[364789191,1749241889481,-480.0,0.00028876,5]
[364789192,1749241889490,-891.22,0.00028876,5]
[364789193,1749241889504,-1010.55,0.00028876,5]
[364789194,1749241889521,-480.0,0.00028876,5]
[364789195,1749241889530,-580.5,0.00028876,5]
[364789196,1749241889540,-480.0,0.00028876,5]
[364789197,1749241889549,-480.0,0.00028876,5]
[364789198,1749241889559,-480.0,0.00028876,5]
[364789199,1749241889568,-480.0,0.00028876,5]
[364789200,1749241889578,-787.11,0.00028876,5]
[364789201,1749241889587,-480.0,0.00028876,5]
[364789202,1749241889596,-801.53,0.00028876,5]
[364789203,1749241889605,-547.92,0.00028876,5]
[364789204,1749241889614,-788.62,0.00028876,5]
[364789205,1749241889623,-823.95,0.00028876,5]
[364789206,1749241889632,-540.55,0.00028876,5]
[364789207,1749241889641,-480.0,0.00028876,5]
[364789208,1749241889651,-1667.28,0.00028876,5]
[364789209,1749241889659,-708.27,0.00028876,5]
[364789210,1749241889669,-815.35,0.00028876,5]
[364789211,1749241889677,-1322.04,0.00028876,5]
[364789212,1749241889687,-788.51,0.00028876,5]
[364789213,1749241889695,-480.0,0.00028876,5]
[364789214,1749241889704,-1588.19,0.00028876,5]
[364789215,1749241889713,-894.23,0.00028876,5]
[364789216,1749241889722,-627.73,0.00028876,5]
[364789217,1749241889731,-493.66,0.00028876,5]
[364789218,1749241889740,-907.31,0.00028876,5]
[364789219,1749241889749,-1000.0,0.00028876,5]
[364789220,1749241889758,-543.94,0.00028876,5]
[364789221,1749241889767,-151.0,0.00028876,7]
[364789222,1749241889776,-907.9,0.00028876,5]
[364789223,1749241889787,-612.39,0.00028876,5]
[364789224,1749241889796,-908.3,0.00028876,5]
[364789225,1749241889805,-156.813701,0.00028876,5]
[364789226,1749241889815,-480.0,0.00028876,5]
[364789227,1749241889823,-480.0,0.00028876,5]
[364789228,1749241889833,-3267.11,0.00028876,5]
[364789229,1749241889842,-778.17,0.00028876,5]
[364789230,1749241889850,-948.36,0.00028876,5]
[364789231,1749241889860,-1438.85,0.00028876,5]
[364789232,1749241889869,-542.99,0.00028876,5]
[364789233,1749241889878,-555.32,0.00028876,5]
[364789234,1749241889887,-1535.87,0.00028876,5]
[364789235,1749241889896,-315.93712966,0.00028876,5]
[364789236,1749241889905,-1296.25,0.00028876,5]
[364789237,1749241889915,-516.58,0.00028876,5]
[364789238,1749241889924,-480.0,0.00028876,5]
[364789239,1749241889933,-1575.78,0.00028876,5]
[364789240,1749241889942,-538.08,0.00028876,5]
[364789241,1749241889951,-970.72,0.00028876,5]
[364789242,1749241889960,-2734.62,0.00028876,5]
[364789243,1749241889970,-1837.71,0.00028876,5]
[364789244,1749241889979,-480.0,0.00028876,5]
[364789245,1749241889987,-2758.24,0.00028876,5]
[364789246,1749241889996,-4609.26,0.00028876,5]
[364789247,1749241890006,-480.0,0.00028876,5]
[364789248,1749241890015,-819.99,0.00028876,5]
[364789249,1749241890024,-1046.07,0.00028876,5]
[364789250,1749241890034,-480.0,0.00028876,5]
[364789251,1749241890043,-3979.76,0.00028876,5]
[364789252,1749241890052,-902.21,0.00028876,5]
[364789253,1749241890062,-480.0,0.00028876,5]
[364789254,1749241890071,-599.88,0.00028876,5]
[364789255,1749241890081,-480.0,0.00028876,5]
[364789256,1749241890090,-7399.63,0.00028876,5]
[364789257,1749241890100,-765.24,0.00028876,5]
[364789258,1749241890110,-480.0,0.00028876,5]
[364789259,1749241890120,-57460.09,0.00028876,5]
[364789260,1749241890130,-703.27,0.00028876,5]
[364789261,1749241890140,-480.0,0.00028876,5]
[364789262,1749241890151,-4676.37,0.00028876,5]
[364789263,1749241890160,-2938.32,0.00028876,5]
[364789264,1749241890169,-1379.45,0.00028876,5]
[364789265,1749241890180,-7478.95,0.00028876,5]
[364789266,1749241890190,-755.4,0.00028876,5]
[364789267,1749241890199,-607.62,0.00028876,5]
[364789268,1749241890209,-1091.95,0.00028876,5]
[364789269,1749241890219,-3373.75,0.00028876,5]
[364789270,1749241890228,-1260.18,0.00028876,5]
[364789271,1749241890239,-949.92,0.00028876,5]
[364789272,1749241890249,-9118.0,0.00028876,5]
[364789273,1749241890258,-520.51,0.00028876,5]
[364789274,1749241890268,-480.0,0.00028876,5]
[364789275,1749241890278,-597.4,0.00028876,5]
[364789276,1749241890288,-1500.48,0.00028876,5]
[364789277,1749241890301,-1073.19,0.00028876,5]
[364789278,1749241890311,-2617.35,0.00028876,5]
[364789279,1749241890320,-1091.83,0.00028876,5]
[364789280,1749241890332,-1000.0,0.00028876,2]
[364789281,1749241890342,-480.0,0.00028876,5]
[364789282,1749241890352,-603.40074603,0.00028876,5]
[364789283,1749241890361,-2954.48,0.00028876,5]
[364789284,1749241890371,-480.0,0.00028876,5]
[364789285,1749241890381,-676.46,0.00028876,5]
[364789286,1749241890391,-1100.1,0.00028876,5]
[364789287,1749241890401,-774.3,0.00028876,5]
[364789288,1749241890411,-909.08,0.00028876,5]
[364789289,1749241890421,-771.25,0.00028876,5]
[364789290,1749241890432,-1341.13,0.00028876,5]
[364789291,1749241890442,-1674.49,0.00028876,5]
[364789292,1749241890451,-480.0,0.00028876,5]
[364789293,1749241890461,-2363.43,0.00028876,5]
[364789294,1749241890472,-1778.5,0.00028876,5]
[364789295,1749241890481,-2094.52,0.00028876,5]
[364789296,1749241890491,-480.0,0.00028876,5]
[364789297,1749241890501,-2998.55,0.00028876,5]
[364789298,1749241890511,-837.35,0.00028876,5]
[364789299,1749241890521,-1324.98,0.00028876,5]
[364789300,1749241890531,-822.69,0.00028876,5]
[364789301,1749241890541,-4354.28,0.00028876,5]
[364789302,1749241890551,-10833.54,0.00028876,5]
[364789303,1749241890560,-1172.56,0.00028876,5]
[364789304,1749241890570,-2910.79,0.00028876,5]
[364789305,1749241890581,-1425.98,0.00028876,5]
[364789306,1749241890590,-1161.29,0.00028876,5]
[364789307,1749241890599,-701.08,0.00028876,5]
[364789308,1749241890608,-725.11,0.00028876,5]
[364789309,1749241890617,-480.0,0.00028876,5]
[364789310,1749241890627,-891.78,0.00028876,5]